bitfinex/quotes_BTCUSD_20230404
["timestamp","ask_amount","ask_price","bid_price","bid_amount"]
[1680613919282,0.81102823,28301.0,28300.0,0.00298469]
[1680613919507,0.81505866,28301.0,28300.0,0.00298469]
[1680613919744,0.95639566,28301.0,28300.0,0.00298469]
[1680613920152,0.612949,28301.0,28300.0,0.00298469]
[1680613920367,0.612949,28301.0,28300.0,0.01351432]
[1680613920577,1.171612,28301.0,28300.0,0.01351432]
[1680613920786,1.471612,28301.0,28300.0,0.01351432]
[1680613921661,1.448612,28301.0,28300.0,0.01351432]
[1680613921890,1.88560382,28301.0,28300.0,0.01351432]
[1680613922117,2.06577814,28301.0,28300.0,0.01351432]
[1680613922402,1.48730382,28301.0,28300.0,0.01351432]
[1680613922637,1.104312,28301.0,28300.0,0.01351432]
[1680613922851,1.475612,28301.0,28300.0,0.01351432]
[1680613923284,1.448612,28301.0,28300.0,0.01351432]
[1680613923497,1.475612,28301.0,28300.0,0.01351432]
[1680613923751,1.70139988,28301.0,28300.0,0.01351432]
[1680613924173,1.33009988,28301.0,28300.0,0.01351432]
[1680613924384,1.54435739,28301.0,28300.0,0.01351432]
[1680613924623,1.57135739,28301.0,28300.0,0.01351432]
[1680613924834,1.57156739,28301.0,28300.0,0.01351432]
[1680613925071,0.727,28301.0,28300.0,0.14268697]
[1680613925289,0.734276,28301.0,28300.0,0.01351432]
[1680613925501,0.734276,28301.0,28300.0,0.11688597]
[1680613925722,0.734066,28301.0,28300.0,0.11688597]
[1680613925931,0.7,28301.0,28300.0,0.11688597]
[1680613926153,0.011573,28301.0,28300.0,0.11688597]
[1680613926609,0.010066,28301.0,28300.0,0.11688597]
[1680613927050,0.003,28301.0,28300.0,0.11688597]
[1680613927263,0.003,28301.0,28300.0,0.16539097]
[1680613927488,0.38439485,28305.0,28300.0,0.11688597]
[1680613927707,0.007066,28304.0,28300.0,0.11688597]
[1680613927920,0.001,28301.0,28300.0,0.12006597]
[1680613928129,0.007066,28303.0,28300.0,0.11706597]
[1680613928357,0.007066,28303.0,28300.0,0.12006597]
[1680613928578,0.007066,28303.0,28300.0,0.01669432]
[1680613928792,0.007066,28303.0,28301.0,0.044935]
[1680613929026,0.007066,28303.0,28301.0,0.044995]
[1680613929244,0.007066,28303.0,28302.0,0.23468462]
[1680613929453,0.009066,28303.0,28302.0,0.23474462]
[1680613929880,0.009066,28303.0,28302.0,0.23486462]
[1680613930191,0.009066,28303.0,28302.0,0.23468462]
[1680613930297,0.007066,28303.0,28302.0,0.23468462]
[1680613930541,0.010066,28303.0,28302.0,0.23474462]
[1680613930787,0.011198,28304.0,28302.0,0.23480462]
[1680613931038,0.008066,28303.0,28302.0,0.003]
[1680613931278,0.001,28303.0,28302.0,0.003]
[1680613931514,0.001,28303.0,28302.0,0.04992]
[1680613931743,0.007066,28303.0,28302.0,0.24588234]
[1680613931978,0.008066,28303.0,28302.0,0.24906234]
[1680613932203,0.008066,28303.0,28302.0,0.24865034]
[1680613932657,0.001,28303.0,28302.0,0.24865034]
[1680613932921,0.001,28303.0,28302.0,0.049688]
[1680613933158,0.001,28303.0,28302.0,0.27253161]
[1680613933384,0.001,28303.0,28302.0,0.27271161]
[1680613933832,0.001,28303.0,28302.0,0.26231512]
[1680613934736,0.008066,28303.0,28302.0,0.26231512]
[1680613935432,0.001,28303.0,28302.0,0.21580712]
[1680613935669,0.001,28303.0,28302.0,0.26265712]
[1680613935898,0.008066,28303.0,28302.0,0.26265712]
[1680613936369,0.008066,28303.0,28302.0,0.21580712]
[1680613936841,0.008066,28303.0,28302.0,0.00318]
[1680613936842,0.036331,28303.0,28302.0,0.00318]
[1680613937075,0.44186113,28303.0,28302.0,0.00318]
[1680613937303,0.44186113,28303.0,28302.0,0.003]
[1680613937539,0.44186113,28303.0,28302.0,0.00312]
[1680613937811,0.48746044,28303.0,28302.0,0.003]
[1680613938268,0.44186113,28303.0,28302.0,0.003]
[1680613938947,0.44086113,28303.0,28300.0,0.01351432]
[1680613939179,0.010824,28302.0,28300.0,0.01351432]
[1680613939425,0.021199,28301.0,28300.0,0.01363432]
[1680613939655,0.41731008,28301.0,28300.0,0.01351432]
[1680613939889,0.031983,28301.0,28300.0,0.01351432]
[1680613940115,0.007066,28301.0,28300.0,0.01351432]
[1680613940357,0.007066,28301.0,28300.0,0.01369432]
[1680613940822,0.010066,28301.0,28300.0,0.01369432]
[1680613941047,0.007066,28301.0,28300.0,0.01369432]
[1680613941502,0.20021,28305.0,28300.0,0.01369432]
[1680613941734,0.007066,28302.0,28301.0,0.25205262]
[1680613941972,0.007066,28302.0,28301.0,0.25223262]
[1680613942648,0.023066,28302.0,28301.0,0.25223262]
[1680613942912,0.016,28302.0,28301.0,0.25205262]
[1680613943141,0.007275,28306.0,28301.0,0.32703478]
[1680613943366,0.001,28302.0,28301.0,0.33003478]
[1680613943592,0.007066,28302.0,28301.0,0.37311978]
[1680613943812,0.001,28302.0,28301.0,0.37611978]
[1680613944036,0.007066,28304.0,28301.0,0.37311978]
[1680613944262,0.007066,28303.0,28301.0,0.32709478]
[1680613944486,0.007066,28304.0,28302.0,0.046607]
[1680613944713,0.007065,28305.0,28302.0,0.13081292]
[1680613944933,0.007065,28306.0,28303.0,0.08420592]
[1680613945156,0.008065,28306.0,28303.0,0.08420592]
[1680613945443,0.007065,28306.0,28303.0,0.08420592]
[1680613945657,0.003,28304.0,28303.0,0.08420592]
[1680613945898,0.47476354,28306.0,28303.0,0.08420592]
[1680613946120,0.48476354,28306.0,28303.0,0.08426592]
[1680613946358,0.48476354,28306.0,28303.0,0.08438592]
[1680613946582,0.47476354,28306.0,28303.0,0.08438592]
[1680613946803,0.47476354,28306.0,28303.0,0.08738592]
[1680613946804,0.47576354,28306.0,28303.0,0.08738592]
[1680613947038,0.47576354,28306.0,28304.0,0.33614869]
[1680613947262,0.47476354,28306.0,28304.0,0.33632869]
[1680613947713,0.007065,28306.0,28304.0,0.33632869]
[1680613947934,0.008065,28306.0,28304.0,0.33614869]
[1680613948156,0.007065,28306.0,28304.0,0.33632869]
[1680613948384,0.008065,28306.0,28304.0,0.33932869]
[1680613949547,0.001,28306.0,28304.0,0.465613]
[1680613949774,0.007065,28307.0,28305.0,0.6379194]
[1680613949990,0.001,28306.0,28305.0,0.2501344]
[1680613950211,0.001,28306.0,28305.0,0.41817605]
[1680613950674,0.007065,28307.0,28305.0,0.60449114]
[1680613950923,0.007065,28307.0,28306.0,0.43000777]
[1680613951148,0.003,28307.0,28306.0,0.59810942]
[1680613951381,0.01583806,28308.0,28306.0,0.59804942]
[1680613951608,0.01583806,28308.0,28307.0,0.513991]
[1680613951609,0.00877306,28308.0,28307.0,0.513991]
[1680613951841,0.00877306,28308.0,28307.0,0.21133054]
[1680613952075,0.00877306,28308.0,28307.0,0.0084]
[1680613952312,0.00877306,28308.0,28307.0,0.5805041]
[1680613952537,0.007274,28310.0,28307.0,0.5805041]
[1680613952763,0.007064,28310.0,28309.0,0.38033696]
[1680613952988,0.007064,28310.0,28309.0,0.3803359]
[1680613953252,0.007064,28310.0,28309.0,0.47366645]
[1680613953928,0.007064,28310.0,28309.0,0.68496476]
[1680613954373,0.008064,28310.0,28309.0,0.69996476]
[1680613954595,0.007064,28310.0,28309.0,0.68496476]
[1680613954832,0.008064,28310.0,28309.0,0.48866645]
[1680613955051,0.03588513,28311.0,28309.0,0.47366645]
[1680613955276,0.03567513,28311.0,28310.0,0.12678118]
[1680613955505,0.04273913,28311.0,28310.0,0.60045162]
[1680613955797,0.007064,28311.0,28310.0,0.47367044]
[1680613956036,0.007274,28311.0,28310.0,0.43136752]
[1680613956890,0.008274,28311.0,28310.0,0.44036752]
[1680613957108,0.007274,28311.0,28310.0,0.51586068]
[1680613957336,0.007274,28311.0,28310.0,0.43136752]
[1680613957552,0.007274,28311.0,28310.0,0.43436752]
[1680613957796,0.007274,28311.0,28310.0,0.08447427]
[1680613958013,0.001,28311.0,28310.0,0.09347427]
[1680613958242,0.007064,28311.0,28310.0,0.21121293]
[1680613958463,0.007064,28311.0,28310.0,0.21421293]
[1680613958673,0.007274,28311.0,28310.0,0.08447427]
[1680613958894,0.007064,28311.0,28310.0,0.08447427]
[1680613959330,0.007064,28311.0,28310.0,0.66626669]
[1680613959550,0.008064,28311.0,28310.0,0.24494396]
[1680613959754,0.008064,28311.0,28310.0,0.23594396]
[1680613959995,0.007064,28311.0,28310.0,0.23894396]
[1680613960428,0.007064,28311.0,28310.0,0.23594396]
[1680613960664,0.008064,28311.0,28310.0,0.24494396]
[1680613960940,0.007064,28311.0,28310.0,0.23094396]
[1680613961391,0.007064,28311.0,28310.0,0.23394396]
[1680613961603,0.007064,28311.0,28310.0,0.23094396]
[1680613962495,0.008064,28311.0,28310.0,0.23994396]
[1680613962721,0.007064,28311.0,28310.0,0.23094396]
[1680613962935,0.007064,28311.0,28310.0,0.07947427]
[1680613963155,0.007064,28311.0,28310.0,0.08247427]
[1680613963581,0.007064,28311.0,28310.0,0.07947427]
[1680613963802,0.008064,28311.0,28310.0,0.08847427]
[1680613964030,0.007064,28311.0,28310.0,0.07947427]
[1680613964253,0.00021,28312.0,28310.0,0.07947427]
[1680613964481,0.007064,28311.0,28310.0,0.34862088]
[1680613964711,0.007064,28311.0,28310.0,0.39566588]
[1680613964931,0.007064,28311.0,28310.0,0.34862088]
[1680613965386,0.4593248,28313.0,28310.0,0.34562088]
[1680613965598,0.008064,28311.0,28310.0,0.35462088]
[1680613965815,0.007064,28311.0,28310.0,0.07947427]
[1680613966056,0.007064,28312.0,28310.0,0.08247427]
[1680613966272,0.007064,28312.0,28311.0,0.22601774]
[1680613967680,0.00021,28314.0,28311.0,0.30921774]
[1680613967935,0.007064,28312.0,28311.0,0.30921774]
[1680613968152,0.021192,28312.0,28311.0,0.30921774]
[1680613968371,0.023192,28312.0,28311.0,0.32721774]
[1680613968659,0.007064,28312.0,28311.0,0.22601774]
[1680613968894,0.44438972,28312.0,28311.0,0.018]
[1680613969121,0.45536572,28312.0,28310.0,6e-05]
[1680613969357,0.44638972,28312.0,28311.0,0.018]
[1680613969579,0.45607572,28312.0,28310.0,0.35194003]
[1680613969803,0.44638972,28312.0,28311.0,0.018]
[1680613970038,0.019568,28312.0,28311.0,0.018]
[1680613970288,0.205768,28312.0,28311.0,0.018]
[1680613970518,0.205978,28312.0,28311.0,0.018]
[1680613970736,0.505768,28312.0,28311.0,0.018]
[1680613970975,0.705828,28312.0,28311.0,0.018]
[1680613971219,0.705978,28312.0,28311.0,0.018]
[1680613971468,0.86793021,28312.0,28306.0,0.0844837]
[1680613971701,0.0216,28308.0,28306.0,0.0844837]
[1680613971950,0.021195,28307.0,28306.0,0.0804837]
[1680613972648,0.021195,28307.0,28306.0,0.0814837]
[1680613972890,0.021195,28307.0,28306.0,0.001]
[1680613973120,0.032523,28307.0,28303.0,0.25366243]
[1680613973341,0.17409181,28307.0,28306.0,0.001]
[1680613973566,0.70496319,28307.0,28306.0,0.001]
[1680613974284,0.80148378,28307.0,28306.0,0.001]
[1680613974511,0.80148378,28307.0,28303.0,0.42270401]
[1680613974512,0.79048378,28307.0,28303.0,0.42270401]
[1680613974747,0.79048378,28307.0,28306.0,0.001]
[1680613974748,0.79616078,28307.0,28306.0,0.001]
[1680613975020,0.349298,28307.0,28306.0,0.001]
[1680613975253,0.070898,28307.0,28306.0,0.001]
[1680613975487,0.44831303,28306.0,28303.0,0.25366243]
[1680613975743,0.0216,28304.0,28303.0,0.25666243]
[1680613975955,0.028666,28304.0,28303.0,0.25366243]
[1680613976386,0.028666,28304.0,28303.0,0.55678951]
[1680613977157,0.028666,28304.0,28303.0,0.12673866]
[1680613977374,0.039769,28304.0,28303.0,0.12773866]
[1680613977601,0.028666,28304.0,28303.0,0.12673866]
[1680613977840,0.045666,28304.0,28303.0,0.001]
[1680613979354,0.024066,28304.0,28303.0,0.1392872]
[1680613980909,0.017,28304.0,28303.0,0.67959484]
[1680613981145,0.017,28304.0,28303.0,0.74050792]
[1680613981638,0.017,28304.0,28303.0,0.73100704]
[1680613981863,0.017,28304.0,28303.0,1.29647602]
[1680613982087,0.007065,28308.0,28303.0,1.29547602]
[1680613982311,0.007065,28308.0,28305.0,0.21119686]
[1680613982532,0.007065,28309.0,28306.0,0.13298374]
[1680613982774,0.007065,28309.0,28305.0,0.08447874]
[1680613983005,0.40940166,28306.0,28305.0,0.08447874]
[1680613983237,0.44679496,28306.0,28304.0,0.21137686]
[1680613983459,0.41853296,28306.0,28304.0,0.21137686]
[1680613983672,0.41853296,28306.0,28305.0,0.012109]
[1680613983926,0.031813,28306.0,28305.0,0.012109]
[1680613984144,0.042813,28306.0,28305.0,0.013109]
[1680613984366,0.021196,28306.0,28305.0,0.012109]
[1680613984597,0.043803,28306.0,28305.0,0.013109]
[1680613985249,0.1954265,28306.0,28305.0,0.013109]
[1680613985690,0.136059,28306.0,28305.0,0.013109]
[1680613985910,0.125059,28306.0,28305.0,0.012109]
[1680613986131,0.135059,28306.0,28305.0,0.013109]
[1680613986382,0.3713,28304.0,28297.0,0.05611098]
[1680613986614,0.3713,28304.0,28295.0,0.0231]
[1680613986615,0.0216,28298.0,28295.0,0.0231]
[1680613986839,0.0214,28296.0,28295.0,0.0231]
[1680613987063,0.15988781,28296.0,28295.0,0.0231]
[1680613987283,0.017991,28296.0,28295.0,0.0231]
[1680613987500,0.017781,28296.0,28295.0,0.03351833]
[1680613987762,0.017991,28296.0,28295.0,0.03451833]
[1680613988666,0.017991,28296.0,28295.0,0.03351833]
[1680613988876,0.033991,28296.0,28295.0,0.03451833]
[1680613989094,0.033991,28296.0,28295.0,0.03351833]
[1680613989095,0.017991,28296.0,28295.0,0.03351833]
[1680613989317,0.040991,28296.0,28295.0,0.03451833]
[1680613989750,0.45112215,28296.0,28295.0,0.03451833]
[1680613990683,0.47272215,28296.0,28295.0,0.03451833]
[1680613991853,0.062591,28296.0,28295.0,0.03451833]
[1680613992067,0.47610507,28296.0,28295.0,0.03451833]
[1680613992514,0.47610507,28296.0,28295.0,0.0241]
[1680613992733,0.77610507,28296.0,28295.0,0.0241]
[1680613994731,0.87578781,28296.0,28295.0,0.0241]
[1680613994956,0.742391,28296.0,28295.0,0.0241]
[1680613995858,0.742181,28296.0,28295.0,0.013443]
[1680613996983,1.419181,28296.0,28295.0,0.012443]
[1680613997172,1.65349627,28296.0,28295.0,0.012443]
[1680613997409,1.62649627,28296.0,28295.0,0.012443]
[1680613997615,1.446181,28296.0,28295.0,0.00339645]
[1680613997842,1.37023375,28296.0,28295.0,0.00339645]
[1680613998068,1.39723375,28296.0,28295.0,0.00339645]
[1680613998294,1.49344681,28296.0,28295.0,0.00339645]
[1680613998516,0.76644681,28296.0,28295.0,0.00339645]
[1680613998739,0.366381,28296.0,28295.0,0.00339645]
[1680613998951,0.266381,28296.0,28295.0,0.00339645]
[1680613999165,0.91413826,28296.0,28295.0,0.00339645]
[1680613999593,0.71413826,28296.0,28295.0,0.00339645]
[1680614001183,0.69575815,28296.0,28295.0,0.00339645]
[1680614001397,0.79384902,28296.0,28295.0,0.00339645]
[1680614001614,0.82084902,28296.0,28295.0,0.00339645]
[1680614003820,0.37500089,28296.0,28293.0,0.20509477]
[1680614004034,0.36638184,28295.0,28293.0,0.02160645]
[1680614004253,0.021205,28294.0,28293.0,0.02160645]
[1680614004475,0.049479,28294.0,28293.0,0.02160645]
[1680614004706,0.349479,28294.0,28293.0,0.02160645]
[1680614004925,0.007068,28294.0,28293.0,0.04207724]
[1680614005576,0.007068,28294.0,28293.0,0.08967024]
[1680614005824,0.007068,28294.0,28293.0,0.04325724]
[1680614006059,0.007068,28294.0,28293.0,0.04225724]
[1680614006481,0.008068,28294.0,28293.0,0.04825724]
[1680614006921,0.008068,28294.0,28293.0,0.02778645]
[1680614007851,0.008068,28294.0,28293.0,0.07615845]
[1680614008289,0.008068,28294.0,28293.0,0.22506818]
[1680614008738,0.001,28294.0,28293.0,0.26907718]
[1680614010680,0.001,28294.0,28293.0,0.07179545]
[1680614010912,0.001,28294.0,28293.0,0.88890601]
[1680614011560,0.001,28294.0,28293.0,1.28300601]
[1680614011985,0.014134,28300.0,28293.0,1.28300601]
[1680614011986,0.007067,28299.0,28293.0,1.27700601]
[1680614012248,0.007067,28299.0,28296.0,0.2]
[1680614012480,0.007067,28299.0,28297.0,0.046794]
[1680614012695,0.007067,28299.0,28297.0,0.00018]
[1680614012915,0.007067,28299.0,28298.0,0.22570381]
[1680614013131,0.008067,28299.0,28298.0,0.27376581]
[1680614014028,0.007067,28299.0,28298.0,0.27376581]
[1680614014687,0.007067,28299.0,28298.0,0.26864581]
[1680614014899,0.008067,28299.0,28298.0,0.27758581]
[1680614015337,0.001,28299.0,28298.0,0.056882]
[1680614015556,0.001,28299.0,28298.0,0.78289256]
[1680614015775,0.42705914,28308.0,28298.0,1.52119256]
[1680614016006,0.007066,28305.0,28302.0,0.083]
[1680614016243,0.007066,28305.0,28303.0,0.045269]
[1680614016464,0.007066,28305.0,28302.0,0.028269]
[1680614016675,0.007066,28305.0,28303.0,0.034098]
[1680614016889,0.008066,28305.0,28303.0,0.034098]
[1680614017348,0.001,28305.0,28303.0,0.034098]
[1680614017777,0.39241199,28306.0,28303.0,0.034098]
[1680614018006,0.00021,28306.0,28303.0,0.034098]
[1680614018218,0.001,28305.0,28303.0,0.032455]
[1680614018430,0.001,28305.0,28304.0,0.27198684]
[1680614018650,0.002,28305.0,28304.0,0.30374984]
[1680614018872,0.007275,28306.0,28304.0,0.30374984]
[1680614019088,0.007275,28306.0,28304.0,0.27198684]
[1680614019523,0.007275,28306.0,28305.0,0.04441719]
[1680614019738,0.007275,28306.0,28305.0,0.01027719]
[1680614020678,0.44838825,28306.0,28305.0,0.01027719]
[1680614021106,0.44938825,28306.0,28305.0,0.01027719]
[1680614021333,0.44132325,28306.0,28305.0,0.01027719]
[1680614021548,0.44232325,28306.0,28305.0,0.01827719]
[1680614021760,0.44938825,28306.0,28305.0,0.01827719]
[1680614022442,0.47388825,28306.0,28305.0,0.01827719]
[1680614023297,0.008275,28306.0,28305.0,0.01827719]
[1680614023518,0.032516,28306.0,28305.0,0.01827719]
[1680614023745,0.45634401,28306.0,28305.0,0.01827719]
[1680614023976,0.39160073,28306.0,28305.0,0.01027719]
[1680614024191,0.40460073,28306.0,28305.0,0.01227719]
[1680614024405,0.45146,28306.0,28305.0,0.01027719]
[1680614024625,0.42618527,28306.0,28305.0,0.01227719]
[1680614024851,0.42618527,28306.0,28297.0,0.00018]
[1680614024852,0.77127527,28306.0,28297.0,0.00018]
[1680614025066,0.0216,28298.0,28297.0,0.00018]
[1680614025295,0.21296881,28298.0,28297.0,0.00018]
[1680614025741,0.0959,28298.0,28297.0,0.00018]
[1680614026171,0.0959,28298.0,28296.0,0.00018]
[1680614026390,0.0959,28298.0,28295.0,0.00018]
[1680614026391,0.025739,28297.0,28295.0,0.00018]
[1680614026603,0.021204,28296.0,28295.0,0.00018]
[1680614026809,0.046672,28296.0,28294.0,0.00018]
[1680614027027,0.025193,28295.0,28294.0,0.00018]
[1680614027239,0.060534,28295.0,28294.0,0.00018]
[1680614027512,0.109601,28295.0,28294.0,0.00018]
[1680614027669,0.082134,28295.0,28294.0,0.00018]
[1680614027902,0.298134,28295.0,28294.0,0.00118]
[1680614028125,0.282134,28295.0,28293.0,0.02160645]
[1680614028336,0.04665,28294.0,28293.0,0.02178645]
[1680614028561,0.067855,28294.0,28293.0,0.02178645]
[1680614028769,0.43660028,28294.0,28293.0,0.02178645]
[1680614029856,0.064805,28294.0,28293.0,0.02178645]
[1680614030075,0.37182685,28294.0,28293.0,0.02160645]
[1680614030298,0.42458485,28294.0,28293.0,0.02178645]
[1680614030727,0.43388485,28294.0,28293.0,0.02178645]
[1680614031383,0.40688485,28294.0,28293.0,0.02178645]
[1680614031590,0.43388485,28294.0,28293.0,0.02178645]
[1680614031815,0.20107879,28294.0,28293.0,0.02178645]
[1680614032039,0.88490614,28294.0,28293.0,0.02160645]
[1680614032262,0.78869035,28294.0,28293.0,0.02160645]
[1680614034031,0.404863,28294.0,28293.0,0.02160645]
[1680614034455,0.7763996,28294.0,28293.0,0.02160645]
[1680614035097,0.404863,28294.0,28293.0,0.02160645]
[1680614035597,0.82231175,28294.0,28293.0,0.02160645]
[1680614035811,0.99156853,28294.0,28293.0,0.02160645]
[1680614036472,0.9269751,28294.0,28293.0,0.02160645]
[1680614036674,0.75771832,28294.0,28293.0,0.02160645]
[1680614036894,0.85771832,28294.0,28293.0,0.02160645]
[1680614037111,0.504863,28294.0,28293.0,0.02160645]
[1680614037325,0.88088349,28294.0,28293.0,0.02160645]
[1680614037767,0.88103349,28294.0,28293.0,0.00520917]
[1680614037974,0.88088349,28294.0,28293.0,0.00520917]
[1680614038641,0.78088349,28294.0,28293.0,0.00520917]
[1680614039324,0.379105,28294.0,28293.0,0.00520917]
[1680614039546,0.45269279,28294.0,28293.0,0.00520917]
[1680614039758,0.75269279,28294.0,28293.0,0.00520917]
[1680614039973,0.404552,28294.0,28293.0,0.00520917]
[1680614040193,0.81551005,28294.0,28293.0,0.00520917]
[1680614040411,0.84171705,28294.0,28293.0,0.00520917]
[1680614040624,0.81551005,28294.0,28293.0,0.00520917]
[1680614040836,0.84128405,28294.0,28293.0,0.00520917]
[1680614041929,0.81551005,28294.0,28293.0,0.00520917]
[1680614043966,0.327,28294.0,28293.0,0.15224001]
[1680614044231,0.334068,28294.0,28293.0,0.15224001]
[1680614044518,0.334068,28294.0,28293.0,0.00520917]
[1680614045256,0.307068,28294.0,28293.0,0.00520917]
[1680614045515,0.316068,28294.0,28293.0,0.00520917]
[1680614046066,0.009,28294.0,28293.0,0.22639993]
[1680614046319,0.009,28294.0,28293.0,0.26013293]
[1680614046867,0.009,28294.0,28293.0,0.26019293]
[1680614047153,0.009,28294.0,28293.0,0.26031293]
[1680614047419,0.009,28294.0,28293.0,0.26013293]
[1680614047685,0.009,28294.0,28293.0,0.26019293]
[1680614047979,0.009,28294.0,28293.0,0.26031293]
[1680614050036,0.009,28294.0,28293.0,0.03912217]
[1680614050304,0.009,28294.0,28293.0,0.46611094]
[1680614050622,0.009,28294.0,28293.0,0.46629094]
[1680614050813,0.007067,28297.0,28293.0,0.46629094]
[1680614051092,0.70523858,28298.0,28294.0,0.032403]
[1680614051343,0.70479218,28298.0,28294.0,0.14575123]
[1680614051611,0.00819646,28298.0,28294.0,0.00018]
[1680614051938,0.007066,28301.0,28295.0,0.2]
[1680614052148,0.39026971,28299.0,28296.0,0.03358]
[1680614052368,0.39550636,28298.0,28297.0,0.032724]
[1680614052586,0.40257336,28298.0,28296.0,0.00018]
[1680614052811,0.40257336,28298.0,28296.0,0.034972]
[1680614053026,0.40257336,28298.0,28296.0,0.035032]
[1680614053246,0.40057336,28298.0,28296.0,0.035032]
[1680614053923,0.40057336,28298.0,28296.0,0.00018]
[1680614054345,0.40157336,28298.0,28296.0,0.00418]
[1680614054559,0.40057336,28298.0,28296.0,0.00018]
[1680614054793,0.40157336,28298.0,28296.0,0.00418]
[1680614055250,0.40057336,28298.0,28296.0,0.00018]
[1680614055475,0.40157336,28298.0,28296.0,0.00418]
[1680614055694,0.44685839,28297.0,28296.0,0.00418]
[1680614055908,0.46806039,28297.0,28296.0,0.004]
[1680614056123,0.49387339,28297.0,28296.0,0.004]
[1680614056339,0.49387339,28297.0,28294.0,0.00018]
[1680614056572,0.2,28296.0,28294.0,0.00018]
[1680614056785,0.46806039,28297.0,28294.0,0.00018]
[1680614056786,0.021204,28295.0,28294.0,0.00018]
[1680614056996,0.021204,28295.0,28294.0,0.00012]
[1680614057224,0.021204,28295.0,28293.0,0.10842461]
[1680614057675,0.021204,28295.0,28293.0,0.00538917]
[1680614057881,0.024204,28295.0,28293.0,0.00520917]
[1680614058309,0.021204,28295.0,28293.0,0.00538917]
[1680614059240,0.022204,28295.0,28293.0,0.00938917]
[1680614059668,0.44967491,28294.0,28293.0,0.00938917]
[1680614059894,0.45674291,28294.0,28293.0,0.00920917]
[1680614060116,0.48212791,28294.0,28293.0,0.00920917]
[1680614060566,0.48212791,28294.0,28293.0,0.00520917]
[1680614060797,0.48312791,28294.0,28293.0,0.00920917]
[1680614062318,0.45774291,28294.0,28293.0,0.00920917]
[1680614062554,0.48341391,28294.0,28293.0,0.00920917]
[1680614062778,0.008068,28294.0,28293.0,0.00920917]
[1680614062997,0.008068,28294.0,28293.0,0.19190499]
[1680614064556,0.008068,28294.0,28293.0,0.00920917]
[1680614065271,0.008068,28294.0,28293.0,0.00926917]
[1680614071398,0.008068,28294.0,28293.0,0.11288046]
[1680614071617,0.008068,28294.0,28293.0,0.11306046]
[1680614074753,0.008068,28294.0,28293.0,0.19704918]
[1680614074985,0.008068,28294.0,28293.0,0.11306046]
[1680614075214,0.001,28294.0,28293.0,0.25305881]
[1680614075444,0.001,28294.0,28293.0,0.70447018]
[1680614076120,0.001,28294.0,28293.0,0.70453018]
[1680614076339,0.001,28294.0,28293.0,0.46136264]
[1680614076580,0.001,28294.0,28293.0,0.72546197]
[1680614076780,0.001,28294.0,28293.0,0.46148264]
[1680614077141,0.001,28294.0,28293.0,0.71701219]
[1680614077371,0.001,28294.0,28293.0,0.46148264]
[1680614077972,0.001,28294.0,28293.0,0.72143102]
[1680614078730,0.001,28294.0,28293.0,1.1874932]
[1680614078976,0.00092396,28294.0,28293.0,1.27993571]
[1680614079165,0.00092396,28294.0,28293.0,1.27981571]
[1680614080335,0.007067,28299.0,28293.0,1.27581571]
[1680614080503,0.007067,28300.0,28297.0,0.08461077]
[1680614080745,0.007277,28300.0,28298.0,0.032577]
[1680614080931,0.007277,28300.0,28297.0,0.08461077]
[1680614081137,0.007277,28300.0,28298.0,0.031886]
[1680614081138,0.40232778,28300.0,28298.0,0.031886]
[1680614081346,0.41073111,28299.0,28297.0,0.008]
[1680614081491,0.46481694,28298.0,28297.0,0.008]
[1680614081689,0.46502694,28298.0,28297.0,0.008]
[1680614082362,0.46502694,28298.0,28296.0,0.16398737]
[1680614082558,0.46502694,28298.0,28297.0,0.004]
[1680614083292,0.021412,28298.0,28296.0,0.16398737]
[1680614083556,0.021202,28298.0,28296.0,0.16398737]
[1680614083779,0.021202,28298.0,28297.0,0.004]
[1680614084273,0.021202,28298.0,28297.0,0.16894673]
[1680614085856,0.022202,28298.0,28297.0,0.16894673]
[1680614086078,0.021202,28298.0,28297.0,0.16894673]
[1680614086299,0.021202,28298.0,28297.0,0.17294673]
[1680614086527,0.021202,28298.0,28297.0,0.16894673]
[1680614086743,0.021202,28298.0,28297.0,0.1719374]
[1680614087430,0.007067,28298.0,28297.0,0.1719374]
[1680614088594,0.48224092,28300.0,28297.0,0.1679374]
[1680614088595,0.00021,28300.0,28297.0,0.1679374]
[1680614088812,0.003,28298.0,28297.0,0.1679374]
[1680614089036,0.003,28298.0,28297.0,0.2002354]
[1680614089251,0.010067,28298.0,28297.0,0.1679374]
[1680614089470,0.003,28298.0,28297.0,0.2003164]
[1680614089699,0.003,28298.0,28297.0,0.2010234]
[1680614089919,0.007067,28299.0,28297.0,0.2010234]
[1680614090135,0.007067,28298.0,28297.0,0.1679374]
[1680614090379,0.010067,28298.0,28297.0,0.1679374]
[1680614090797,0.003,28298.0,28297.0,0.1679374]
[1680614091036,0.010067,28298.0,28297.0,0.1679374]
[1680614091273,0.4561427,28298.0,28296.0,0.00018]
[1680614091498,0.4561427,28298.0,28295.0,0.08461077]
[1680614091733,0.4561427,28298.0,28295.0,0.26367196]
[1680614091961,0.4604197,28298.0,28295.0,0.26367196]
[1680614092188,0.4745547,28298.0,28296.0,0.004]
[1680614092414,0.4745547,28298.0,28296.0,0.19049199]
[1680614092673,0.4755547,28298.0,28296.0,0.19049199]
[1680614092942,0.4745547,28298.0,28296.0,0.19049199]
[1680614093152,0.4775547,28298.0,28296.0,0.19049199]
[1680614097797,0.024412,28298.0,28296.0,0.19049199]
[1680614098028,0.024202,28298.0,28296.0,0.19049199]
[1680614099001,0.47022293,28298.0,28294.0,0.27854579]
[1680614099231,0.47022293,28298.0,28294.0,0.27836579]
[1680614099453,0.47022293,28298.0,28295.0,0.14475665]
[1680614099671,0.36102095,28297.0,28294.0,0.08467077]
[1680614099905,0.007068,28296.0,28294.0,0.29329437]
[1680614100366,0.37536695,28297.0,28296.0,0.033399]
[1680614100367,0.00021,28297.0,28296.0,0.033399]
[1680614100599,0.021204,28296.0,28295.0,0.1612817]
[1680614101262,0.023204,28296.0,28295.0,0.1612817]
[1680614101486,0.021204,28296.0,28295.0,0.1612817]
[1680614101704,0.022204,28296.0,28295.0,0.1692817]
[1680614103482,0.008068,28296.0,28295.0,0.1692817]
[1680614104703,0.001,28296.0,28295.0,0.008]